bitfinex/quotes_SOLUSD_20230120
["timestamp","ask_amount","ask_price","bid_price","bid_amount"]
[1674181566376,1.92,21.53,21.51,10.0]
[1674181567625,1.92,21.53,21.511,17.0]
[1674181567855,1.92,21.53,21.512,10.0]
[1674181568076,1.92,21.53,21.513,17.0]
[1674181568478,44.83,21.533,21.514,10.0]
[1674181568819,10.0,21.533,21.515,17.0]
[1674181569731,1.92,21.53,21.515,17.0]
[1674181570679,1.92,21.53,21.513,17.0]
[1674181573320,118.2655,21.535,21.513,17.0]
[1674181573537,118.2655,21.535,21.514,37.08035807]
[1674181573852,118.2655,21.535,21.516,10.0]
[1674181574060,118.2655,21.535,21.517,17.0]
[1674181574247,118.2655,21.535,21.518,10.0]
[1674181574463,118.2655,21.535,21.519,18.92]
[1674181575106,118.2655,21.535,21.52,10.0]
[1674181575300,118.2655,21.535,21.522,10.0]
[1674181575511,118.2655,21.535,21.523,17.0]
[1674181576139,118.2655,21.535,21.524,10.0]
[1674181576367,118.2655,21.535,21.525,17.0]
[1674181579960,34.81,21.548,21.525,17.0]
[1674181580153,10.0,21.547,21.526,11.92]
[1674181580360,10.0,21.547,21.527,17.0]
[1674181580574,10.0,21.547,21.528,10.96]
[1674181580784,10.0,21.547,21.529,17.96]
[1674181580999,10.0,21.547,21.529,17.0]
[1674181581227,0.96,21.546,21.529,17.0]
[1674181581409,0.96,21.545,21.529,17.0]
[1674181581620,0.96,21.545,21.526,25.16035807]
[1674181581621,0.96,21.544,21.527,17.0]
[1674181581831,0.96,21.543,21.527,17.0]
[1674181582060,0.96,21.542,21.524,116.2393]
[1674181582260,0.96,21.541,21.524,116.2393]
[1674181582774,0.96,21.54,21.524,116.2393]
[1674181582986,0.96,21.539,21.524,116.2393]
[1674181583201,0.96,21.538,21.524,116.2393]
[1674181583611,0.96,21.537,21.524,116.2393]
[1674181583854,0.96,21.536,21.524,116.2393]
[1674181584046,0.96,21.535,21.524,116.2393]
[1674181584472,0.96,21.535,21.516,80.41385807]
[1674181584777,0.96,21.535,21.523,20.0]
[1674181584988,10.0,21.543,21.525,10.0]
[1674181585200,10.0,21.543,21.526,17.0]
[1674181586469,1.92,21.542,21.524,17.0]
[1674181587853,1.92,21.542,21.525,10.0]
[1674181588032,1.92,21.542,21.527,10.0]
[1674181588243,1.92,21.542,21.528,17.0]
[1674181588682,0.96,21.542,21.528,17.0]
[1674181588876,0.96,21.544,21.528,17.0]
[1674181589093,10.0,21.545,21.528,17.0]
[1674181589421,128.1896,21.548,21.528,17.0]
[1674181589943,10.0,21.547,21.529,10.0]
[1674181590148,0.96,21.546,21.53,17.0]
[1674181590554,0.96,21.545,21.53,17.0]
[1674181590765,0.96,21.545,21.531,10.0]
[1674181591079,9.90490472,21.547,21.532,17.0]
[1674181592256,0.96,21.546,21.532,17.0]
[1674181592440,0.96,21.545,21.53,17.0]
[1674181592868,0.92,21.546,21.53,17.0]
[1674181593914,0.92,21.546,21.528,17.0]
[1674181594964,0.96,21.545,21.528,17.0]
[1674181596667,0.96,21.545,21.527,17.0]
[1674181597799,0.96,21.545,21.526,17.0]
[1674181598651,10.96,21.545,21.526,17.0]
[1674181598861,0.96,21.544,21.526,17.0]
[1674181599073,0.96,21.543,21.526,17.0]
[1674181599272,0.96,21.542,21.526,17.0]
[1674181599718,0.96,21.541,21.526,17.0]
[1674181600138,128.1896,21.548,21.527,0.96]
[1674181600446,128.1896,21.548,21.528,0.96]
[1674181600663,128.1896,21.548,21.529,0.96]
[1674181600861,128.1896,21.548,21.53,0.96]
[1674181601200,10.0,21.547,21.53,0.96]
[1674181601383,10.0,21.547,21.53,17.96]
[1674181601714,1.92,21.546,21.53,17.0]
[1674181602444,1.92,21.546,21.525,151.46683766]
[1674181602639,1.92,21.546,21.526,0.96]
[1674181602850,1.92,21.546,21.526,10.96]
[1674181603054,1.92,21.546,21.523,20.0]
[1674181603273,53.73,21.546,21.523,20.0]
[1674181603488,10.0,21.545,21.521,20.0]
[1674181603701,1.92,21.544,21.523,55.74129573]
[1674181603895,1.92,21.544,21.524,20.0]
[1674181604341,1.92,21.544,21.525,10.0]
[1674181604974,1.92,21.544,21.526,18.92]
[1674181605296,1.92,21.544,21.527,10.0]
[1674181605514,1.92,21.544,21.529,10.0]
[1674181605710,1.92,21.544,21.53,17.0]
[1674181606545,1.92,21.544,21.531,10.0]
[1674181606754,1.92,21.544,21.533,10.0]
[1674181607189,1.92,21.544,21.534,17.0]
[1674181608540,1.92,21.544,21.532,17.0]
[1674181608769,1.92,21.544,21.53,17.0]
[1674181611716,1.92,21.544,21.531,10.0]
[1674181612027,1.92,21.544,21.532,17.0]
[1674181612630,128.1896,21.548,21.532,17.0]
[1674181612858,1.92,21.547,21.532,17.0]
[1674181613812,11.92,21.547,21.532,17.0]
[1674181615384,1.92,21.547,21.532,17.0]
[1674181615798,1.92,21.547,21.533,10.0]
[1674181616004,0.96,21.547,21.534,17.0]
[1674181616215,118.1896,21.548,21.535,10.0]
[1674181616446,1.92,21.547,21.536,17.0]
[1674181616757,1.92,21.547,21.527,10.0]
[1674181617172,11.92,21.547,21.527,10.0]
[1674181617580,118.1896,21.548,21.527,10.0]
[1674181617999,118.1896,21.548,21.53,17.96]
[1674181618222,118.1896,21.548,21.531,0.96]
[1674181618430,118.1896,21.548,21.532,0.96]
[1674181618642,118.1896,21.548,21.533,10.0]
[1674181618848,118.1896,21.548,21.534,17.0]
[1674181619062,128.1896,21.548,21.534,17.0]
[1674181619812,128.1896,21.548,21.532,17.96]
[1674181620119,10.96,21.547,21.532,17.0]
[1674181620315,11.92,21.547,21.527,10.0]
[1674181621167,11.92,21.547,21.523,65.74129573]
[1674181621588,11.92,21.547,21.525,25.16035807]
[1674181621802,11.92,21.547,21.526,18.92]
[1674181622206,11.92,21.547,21.524,20.0]
[1674181622417,34.81,21.546,21.524,20.0]
[1674181622623,11.92,21.545,21.524,20.0]
[1674181623385,11.92,21.545,21.524,75.74129573]
[1674181623689,11.92,21.545,21.525,10.96]
[1674181623912,1.92,21.545,21.527,10.0]
[1674181624108,1.92,21.545,21.528,18.92]
[1674181624303,162.9996,21.548,21.529,10.0]
[1674181624519,128.1896,21.548,21.531,10.0]
[1674181624744,118.1896,21.548,21.532,17.0]
[1674181625690,11.92,21.547,21.532,17.0]
[1674181626005,10.0,21.545,21.532,17.0]
[1674181626212,1.92,21.544,21.532,17.0]
[1674181626637,34.81,21.547,21.533,10.0]
[1674181626845,0.96,21.546,21.534,17.0]
[1674181627165,0.96,21.547,21.534,17.0]
[1674181627572,10.96,21.547,21.534,17.0]
[1674181627987,128.1896,21.548,21.534,17.0]
[1674181628525,10.0,21.547,21.534,17.0]
[1674181629347,0.96,21.546,21.534,17.0]
[1674181629557,0.96,21.546,21.524,45.16035807]
[1674181629558,0.96,21.545,21.524,45.16035807]
[1674181629792,0.96,21.545,21.524,30.0]
[1674181630107,0.96,21.545,21.524,45.16035807]
[1674181630294,0.96,21.545,21.525,25.16035807]
[1674181630826,0.96,21.545,21.525,15.16035807]
[1674181631050,0.96,21.545,21.524,30.0]
[1674181631454,10.96,21.545,21.524,30.0]
[1674181631659,10.96,21.545,21.523,50.58093766]
[1674181631660,0.96,21.544,21.523,50.58093766]
[1674181631882,34.82,21.543,21.524,20.0]
[1674181632221,11.92,21.542,21.521,20.0]
[1674181632406,17.0,21.541,21.519,112.9106]
[1674181632737,11.92,21.54,21.519,112.9106]
[1674181632948,34.82,21.539,21.519,112.9106]
[1674181633130,1.92,21.538,21.519,112.9106]
[1674181633340,0.96,21.538,21.519,112.9106]
[1674181633571,10.0,21.538,21.519,112.9106]
[1674181633886,1.92,21.537,21.519,112.9106]
[1674181634082,1.92,21.537,21.52,10.0]
[1674181634922,1.92,21.537,21.521,17.0]
[1674181635124,109.6154,21.538,21.521,32.16035807]
[1674181635330,109.6154,21.538,21.522,76.70129573]
[1674181635551,109.6154,21.538,21.524,10.0]
[1674181635795,109.6154,21.538,21.525,18.92]
[1674181636186,109.6154,21.538,21.526,10.0]
[1674181636407,109.6154,21.538,21.527,17.0]
[1674181636596,109.6154,21.538,21.528,10.0]
[1674181636806,10.0,21.547,21.529,17.0]
[1674181636807,108.353,21.546,21.529,17.0]
[1674181637876,108.353,21.546,21.53,1.92]
[1674181638293,108.353,21.546,21.531,10.0]
[1674181638503,108.353,21.546,21.532,17.0]
[1674181639121,10.0,21.545,21.532,17.0]
[1674181639332,10.96,21.545,21.53,17.0]
[1674181640609,10.96,21.545,21.529,17.0]
[1674181641138,10.96,21.545,21.528,10.0]
[1674181641329,0.96,21.545,21.528,10.0]
[1674181641543,0.96,21.544,21.528,10.0]
[1674181642484,0.96,21.544,21.529,17.0]
[1674181642707,0.96,21.544,21.53,10.0]
[1674181642918,0.96,21.545,21.532,10.0]
[1674181643122,108.353,21.546,21.533,17.0]
[1674181643967,112.6036,21.549,21.534,20.0]
[1674181644185,150.3495,21.555,21.534,20.0]
[1674181644186,115.5495,21.555,21.535,17.96]
[1674181644375,115.5495,21.555,21.536,10.96]
[1674181644596,115.5495,21.555,21.537,17.96]
[1674181644795,115.5495,21.555,21.538,10.96]
[1674181645005,115.5495,21.555,21.539,17.96]
[1674181645218,115.5495,21.555,21.54,10.96]
[1674181645434,115.5495,21.555,21.541,17.96]
[1674181646052,115.5495,21.555,21.541,17.0]
[1674181646264,115.5495,21.555,21.539,17.0]
[1674181649428,10.0,21.554,21.539,17.0]
[1674181649958,10.0,21.554,21.536,65.74129573]
[1674181650171,1.92,21.553,21.536,15.16035807]
[1674181650490,1.92,21.553,21.532,10.0]
[1674181650673,1.92,21.553,21.532,25.16035807]
[1674181651335,1.92,21.553,21.535,17.0]
[1674181651548,1.92,21.553,21.536,20.0]
[1674181651860,36.72,21.553,21.527,59.76522382]
[1674181652076,10.0,21.552,21.531,20.0]
[1674181652275,36.72,21.551,21.531,20.0]
[1674181652487,35.76,21.551,21.531,20.0]
[1674181652696,10.96,21.55,21.531,20.0]
[1674181653025,0.96,21.549,21.531,20.0]
[1674181653212,0.96,21.548,21.529,20.0]
[1674181653422,0.96,21.547,21.527,112.9145]
[1674181653627,10.0,21.545,21.527,112.9145]
[1674181653860,10.0,21.543,21.527,112.9145]
[1674181654073,10.0,21.543,21.524,10.0]
[1674181654074,0.96,21.542,21.524,10.0]
[1674181654287,0.96,21.541,21.524,10.0]
[1674181654679,0.96,21.54,21.525,20.0]
[1674181655024,0.96,21.539,21.525,20.0]
[1674181655518,0.96,21.538,21.525,20.0]
[1674181655730,0.96,21.537,21.525,20.0]
[1674181656259,0.96,21.537,21.524,20.0]
[1674181657223,0.96,21.536,21.525,17.0]
[1674181657433,0.96,21.536,21.526,20.0]
[1674181657626,10.0,21.541,21.527,17.0]
[1674181657837,0.96,21.54,21.527,17.0]
[1674181658045,0.96,21.539,21.527,17.0]
[1674181660457,10.0,21.543,21.527,17.0]
[1674181660677,0.96,21.542,21.527,17.0]
[1674181661411,0.96,21.542,21.523,10.0]
[1674181661613,0.96,21.542,21.524,20.0]
[1674181661835,0.96,21.541,21.524,20.0]
[1674181662173,0.96,21.54,21.524,20.0]
[1674181662780,0.96,21.54,21.525,10.0]
[1674181663510,0.96,21.54,21.527,10.0]
[1674181663722,0.96,21.54,21.528,17.0]
[1674181668255,0.96,21.539,21.528,17.0]
[1674181668994,0.96,21.539,21.529,10.0]
[1674181669207,10.0,21.545,21.53,17.0]
[1674181669512,1.92,21.544,21.53,17.0]
[1674181670132,1.92,21.544,21.528,17.0]
[1674181670561,10.0,21.543,21.528,17.0]
[1674181670773,1.92,21.542,21.521,120.4413]
[1674181670988,1.92,21.542,21.525,17.0]
[1674181671613,18.92,21.542,21.521,10.0]
[1674181671937,10.0,21.541,21.529,115.0]
[1674181672249,1.92,21.54,21.524,115.0]
[1674181672653,1.92,21.54,21.523,125.0]
[1674181672866,10.0,21.541,21.524,37.0]
[1674181673073,10.0,21.543,21.525,10.0]
[1674181673283,10.0,21.543,21.526,17.0]
[1674181674117,0.96,21.542,21.526,17.0]
[1674181674343,10.0,21.543,21.526,17.0]
[1674181674544,113.6981,21.547,21.526,17.0]
[1674181674757,113.6981,21.547,21.527,0.96]
[1674181674984,113.6981,21.547,21.528,0.96]
[1674181675187,113.6981,21.547,21.529,10.0]
[1674181675411,113.6981,21.547,21.53,17.0]
[1674181676121,0.96,21.546,21.531,10.0]
[1674181676331,0.96,21.545,21.532,17.0]
[1674181676556,0.96,21.545,21.533,10.0]
[1674181676771,0.96,21.545,21.534,17.0]
[1674181677300,0.96,21.545,21.535,10.0]
[1674181677502,0.96,21.545,21.536,17.0]
[1674181678017,34.8,21.553,21.537,10.0]
[1674181678226,144.3439,21.557,21.538,17.0]
[1674181678541,109.5539,21.557,21.538,17.0]
[1674181678756,10.0,21.556,21.539,10.0]
[1674181678979,10.0,21.556,21.54,17.0]
[1674181681488,109.5539,21.557,21.541,10.0]
[1674181681704,109.5539,21.557,21.542,17.0]
[1674181681915,0.96,21.556,21.542,17.0]
[1674181683090,0.96,21.555,21.542,17.0]
[1674181683480,0.96,21.554,21.537,10.0]
[1674181683925,0.96,21.553,21.537,10.0]
[1674181685084,0.96,21.553,21.538,17.0]
[1674181685273,0.96,21.553,21.539,10.0]
[1674181685477,0.96,21.553,21.54,17.0]
[1674181686126,0.96,21.554,21.54,17.0]
[1674181686533,0.96,21.555,21.54,17.0]
[1674181686744,0.96,21.554,21.541,10.0]
[1674181686954,0.96,21.554,21.542,17.0]
[1674181687164,0.96,21.554,21.543,10.0]
[1674181687483,0.96,21.554,21.544,17.0]
[1674181687687,0.96,21.554,21.543,17.0]
[1674181687897,0.96,21.554,21.542,17.0]
[1674181689073,0.96,21.554,21.54,17.0]
[1674181689692,0.96,21.554,21.541,10.0]
[1674181689896,109.5539,21.557,21.542,17.0]
[1674181690122,296.11906953,21.6,21.542,17.0]
[1674181690123,3.94507,21.594,21.543,20.0]
[1674181690318,3.94507,21.594,21.544,17.96]
[1674181690319,112.0155,21.569,21.544,17.96]
[1674181690652,34.78,21.568,21.545,20.0]
[1674181690840,10.0,21.567,21.546,27.0]
[1674181691482,10.0,21.567,21.547,10.0]
[1674181691701,10.0,21.565,21.549,10.0]
[1674181691890,10.0,21.565,21.547,10.0]
[1674181692101,10.0,21.565,21.548,17.0]
[1674181692311,1.92,21.559,21.548,17.0]
[1674181692533,1.92,21.559,21.547,17.0]
[1674181695673,1.92,21.559,21.546,17.0]
[1674181695885,11.92,21.559,21.546,17.0]
[1674181698198,1.92,21.559,21.546,17.0]
[1674181699150,1.92,21.559,21.547,10.0]
[1674181699482,1.92,21.559,21.548,17.0]
[1674181699665,1.92,21.559,21.535,50.58093766]
[1674181699999,44.79,21.558,21.535,10.0]
[1674181700221,28.92,21.557,21.535,10.0]
[1674181700403,10.0,21.555,21.535,10.0]
[1674181700617,1.92,21.554,21.535,10.0]
[1674181701054,1.92,21.554,21.536,17.0]
[1674181701460,1.92,21.554,21.537,10.0]
[1674181701670,1.92,21.554,21.538,17.0]
[1674181701888,1.92,21.554,21.539,10.0]
[1674181702099,1.92,21.554,21.54,17.0]
[1674181702310,1.92,21.554,21.541,10.0]
[1674181702517,1.92,21.554,21.542,17.0]
[1674181703901,1.92,21.554,21.54,17.0]
[1674181704515,113.5534,21.556,21.54,17.0]
[1674181704719,147.2807,21.562,21.542,10.0]
[1674181704928,112.4907,21.562,21.543,17.0]
[1674181705156,112.4907,21.562,21.544,21.92]
[1674181705363,112.4907,21.562,21.545,17.0]
[1674181705689,112.4907,21.562,21.546,30.0]
[1674181705876,34.78,21.567,21.547,17.0]
[1674181706210,147.8222,21.57,21.547,17.0]
[1674181706522,113.0522,21.57,21.549,10.0]
[1674181706729,113.0522,21.57,21.55,18.92]
[1674181706920,118.195,21.571,21.551,20.0]
[1674181707130,118.195,21.571,21.552,18.92]
[1674181707340,118.195,21.571,21.552,34.08035807]
[1674181707574,118.195,21.571,21.553,15.16035807]
[1674181707893,118.195,21.571,21.554,48.92]
[1674181708078,118.195,21.571,21.555,0.96]
[1674181708290,118.195,21.571,21.555,10.0]
[1674181708500,118.195,21.571,21.556,37.0]
[1674181709570,11.92,21.57,21.521,239.58908181]
[1674181709760,34.78,21.569,21.545,10.0]
[1674181709968,34.78,21.569,21.544,15.16035807]
[1674181709969,1.92,21.568,21.544,15.16035807]
[1674181710285,34.78,21.567,21.543,157.03403766]
[1674181710496,10.0,21.565,21.544,10.0]
[1674181710813,36.7,21.564,21.543,116.4531]
[1674181711557,36.7,21.564,21.537,88.39117806]
[1674181711558,10.0,21.563,21.539,10.0]
[1674181711768,36.71,21.562,21.539,10.0]
[1674181712171,10.0,21.561,21.54,0.96]
[1674181712495,10.0,21.559,21.539,10.0]
[1674181712717,36.71,21.558,21.539,10.0]
[1674181713538,36.71,21.558,21.541,10.0]
[1674181713885,1.92,21.558,21.542,17.96]
[1674181714069,223.3618,21.56,21.543,10.96]
[1674181714403,0.96,21.559,21.545,10.0]
[1674181714741,10.96,21.559,21.546,17.0]
[1674181714901,0.96,21.559,21.546,17.0]
[1674181715115,0.96,21.558,21.544,17.0]
[1674181715541,223.3618,21.56,21.545,10.0]
[1674181715760,223.3618,21.56,21.546,37.0]
[1674181715761,114.6221,21.56,21.546,37.0]
[1674181715962,10.0,21.568,21.546,37.0]
[1674181715963,34.78,21.567,21.547,1.92]
[1674181716175,34.78,21.569,21.547,17.08035807]
[1674181716376,34.78,21.569,21.548,72.74129573]
[1674181716588,34.78,21.569,21.55,10.0]
[1674181716805,111.8556,21.573,21.551,17.96]
[1674181717002,111.8556,21.573,21.551,73.70129573]
[1674181717230,111.8556,21.573,21.553,10.0]
[1674181717430,111.8556,21.573,21.554,17.96]
[1674181717753,111.8556,21.573,21.555,30.96]
[1674181717965,111.8556,21.573,21.556,17.96]
[1674181718178,111.8556,21.573,21.556,17.0]
[1674181718381,10.0,21.57,21.556,17.0]
[1674181718809,10.0,21.57,21.557,20.0]
[1674181719241,0.96,21.569,21.557,20.0]
[1674181719444,0.96,21.568,21.557,20.0]
[1674181719654,0.96,21.568,21.553,10.0]
[1674181719655,0.96,21.568,21.554,20.0]
[1674181719876,0.96,21.569,21.555,10.0]
[1674181720086,0.96,21.57,21.556,20.0]
[1674181720406,0.96,21.569,21.558,10.0]
[1674181720596,0.96,21.57,21.559,17.0]
[1674181721245,10.96,21.57,21.559,17.0]
[1674181721557,0.96,21.569,21.557,17.0]
[1674181721750,0.96,21.569,21.558,20.0]
[1674181721961,0.96,21.569,21.559,17.0]
[1674181722171,0.96,21.57,21.559,17.0]
[1674181722604,10.96,21.57,21.559,17.0]
[1674181723119,10.0,21.57,21.559,17.0]
[1674181723334,118.195,21.571,21.56,10.0]
[1674181723533,34.77,21.575,21.561,17.0]
[1674181723748,154.3086,21.581,21.562,10.0]
[1674181723975,154.3086,21.581,21.563,17.0]
[1674181724191,10.0,21.58,21.563,17.0]
[1674181724397,10.0,21.578,21.561,17.0]
[1674181725125,1.92,21.577,21.561,17.0]
[1674181725533,34.75,21.587,21.562,26.12035807]
[1674181725743,139.5,21.603,21.563,20.96]
[1674181725744,152.1875,21.592,21.563,20.96]
[1674181725991,152.1875,21.592,21.564,0.96]
[1674181726187,152.1875,21.592,21.565,0.96]
[1674181726388,10.0,21.591,21.566,0.96]
[1674181726721,117.4475,21.602,21.567,10.96]
[1674181726897,34.72,21.601,21.568,37.96]
[1674181727217,10.0,21.6,21.569,10.96]
[1674181727428,10.0,21.6,21.57,37.96]
[1674181727429,34.73,21.599,21.57,37.96]
[1674181727631,10.0,21.598,21.571,10.96]
[1674181727872,34.73,21.597,21.572,37.96]
[1674181728183,10.0,21.596,21.573,10.0]
[1674181728382,10.0,21.594,21.574,37.0]
[1674181728594,34.74,21.593,21.575,17.0]
[1674181728809,34.74,21.593,21.576,20.0]
[1674181729022,10.96,21.592,21.577,17.0]
[1674181729335,10.0,21.59,21.578,20.0]
[1674181729544,1.92,21.589,21.578,20.0]
[1674181729995,1.92,21.589,21.57,10.0]
[1674181730207,34.74,21.588,21.565,10.0]
[1674181730417,10.96,21.587,21.565,10.0]
[1674181730622,35.71,21.586,21.565,10.0]
[1674181730838,0.96,21.585,21.564,119.3735]
[1674181731052,0.96,21.584,21.564,119.3735]
[1674181731249,0.96,21.583,21.565,10.0]
[1674181731458,0.96,21.582,21.565,10.0]
[1674181731674,0.96,21.581,21.565,10.0]
[1674181731876,0.96,21.58,21.564,119.3735]
[1674181732087,0.96,21.579,21.564,119.3735]
[1674181732304,0.96,21.578,21.564,119.3735]
[1674181732513,0.96,21.577,21.564,119.3735]
[1674181732918,0.96,21.577,21.562,40.58093766]
[1674181733136,10.0,21.581,21.561,10.0]
[1674181733347,114.3926,21.582,21.562,15.16035807]
[1674181733561,34.74,21.589,21.562,22.15174134]
[1674181733788,150.7707,21.591,21.564,6.72631411]
[1674181733993,150.7707,21.591,21.565,20.96]
[1674181734311,10.0,21.588,21.566,26.12035807]
[1674181734501,10.0,21.588,21.567,17.96]
[1674181734705,10.0,21.588,21.568,20.0]
[1674181734914,34.75,21.586,21.565,60.58093766]
[1674181735146,1.92,21.585,21.565,20.0]
[1674181735355,44.75,21.584,21.562,20.0]
[1674181735572,1.92,21.583,21.562,20.0]
[1674181735779,1.92,21.583,21.563,10.0]
[1674181735991,1.92,21.583,21.562,35.16035807]
[1674181736198,108.0921,21.582,21.562,15.16035807]
[1674181736388,10.0,21.58,21.559,117.1078]
[1674181736601,35.72,21.579,21.559,117.1078]
[1674181736810,36.68,21.579,21.56,10.0]
[1674181737034,1.92,21.579,21.56,10.0]
[1674181737227,223.3454,21.582,21.561,15.16035807]
[1674181737438,10.96,21.581,21.561,15.16035807]
[1674181737673,10.96,21.581,21.562,10.0]
[1674181737984,10.96,21.581,21.563,35.16035807]
[1674181738303,10.96,21.581,21.564,0.96]
[1674181738703,0.96,21.58,21.563,52.16035807]
[1674181739039,0.96,21.579,21.563,37.0]
[1674181739649,0.96,21.579,21.563,20.0]
[1674181740076,0.96,21.579,21.56,20.0]
[1674181740829,0.96,21.579,21.56,35.16035807]
[1674181741146,0.96,21.579,21.561,17.0]
[1674181741327,10.96,21.579,21.562,20.0]
[1674181741542,0.86284081,21.578,21.563,17.0]
[1674181741755,0.96,21.577,21.564,20.0]
[1674181741982,0.96,21.577,21.559,117.1078]
[1674181742175,10.0,21.575,21.559,117.1078]
[1674181742391,0.96,21.574,21.559,117.1078]
[1674181743134,0.86284081,21.578,21.559,117.1078]
[1674181743135,34.76,21.58,21.56,33.12035807]
[1674181743345,10.0,21.587,21.561,10.96]
[1674181743346,44.75,21.587,21.561,10.96]
[1674181743533,44.75,21.587,21.562,37.96]
[1674181743750,44.75,21.587,21.563,10.0]
[1674181743967,44.75,21.587,21.564,17.0]
[1674181744174,44.75,21.587,21.566,10.0]
[1674181744383,44.75,21.587,21.567,17.0]
[1674181744596,10.0,21.581,21.568,20.0]
[1674181744819,10.0,21.581,21.569,17.0]
[1674181745449,1.92,21.58,21.569,17.0]
[1674181747754,0.96,21.58,21.569,17.0]
[1674181747956,44.75,21.587,21.569,17.0]
[1674181748174,44.75,21.587,21.57,10.0]
[1674181748382,44.75,21.587,21.571,17.0]
[1674181748595,10.0,21.586,21.571,17.0]
[1674181748912,108.0921,21.582,21.571,17.0]
[1674181749541,10.0,21.586,21.569,17.0]
[1674181749761,10.0,21.586,21.57,10.0]
[1674181749953,10.0,21.586,21.571,18.92]
[1674181750796,10.0,21.586,21.571,1.92]
[1674181751335,0.96,21.585,21.568,20.0]
[1674181751533,10.0,21.583,21.565,15.16035807]
[1674181751860,0.96,21.582,21.567,10.0]
[1674181752199,0.96,21.582,21.568,20.0]
[1674181752491,110.4212,21.582,21.568,20.0]
[1674181752704,1.92,21.581,21.568,20.0]
[1674181753220,1.92,21.581,21.563,10.0]
[1674181753221,10.0,21.58,21.564,20.0]
[1674181753439,1.92,21.579,21.564,20.0]
[1674181753841,1.92,21.579,21.562,20.0]
[1674181755011,1.92,21.579,21.563,17.0]
[1674181755212,10.0,21.58,21.564,20.96]
[1674181755425,10.0,21.58,21.565,17.96]
[1674181755632,10.0,21.58,21.563,32.16035807]
[1674181755633,10.0,21.58,21.559,117.1078]
[1674181755842,34.76,21.579,21.559,117.1078]
[1674181756386,10.0,21.578,21.559,117.1078]
[1674181756598,10.0,21.576,21.559,117.1078]